bitfinex-derivatives/quotes_BTCF0:USTF0_20210111
["timestamp","ask_amount","ask_price","bid_price","bid_amount"]
[1610360013721,0.13632608,36076.0,36074.0,0.13632608]
[1610360014121,3.6908,36087.0,36075.0,0.00039471]
[1610360014824,3.6908,36087.0,36074.0,0.13632608]
[1610360015224,3.6908,36087.0,36076.0,0.00039473]
[1610360015424,3.6908,36087.0,36075.0,0.00039473]
[1610360015624,3.6908,36087.0,36077.0,0.00039473]
[1610360015824,3.6908,36087.0,36076.0,0.00039473]
[1610360016225,3.6908,36087.0,36075.0,0.00039473]
[1610360016428,3.6908,36087.0,36077.0,0.00039473]
[1610360016626,3.6908,36087.0,36076.0,0.00039473]
[1610360016826,0.0822,36086.0,36076.0,0.00039473]
[1610360017027,0.0822,36086.0,36075.0,0.00039473]
[1610360017226,3.6908,36087.0,36077.0,0.00039471]
[1610360017427,3.6908,36087.0,36075.0,0.00039471]
[1610360017627,3.6908,36087.0,36084.0,0.13632608]
[1610360017827,3.6908,36087.0,36084.0,0.24336608]
[1610360018028,3.6908,36087.0,36085.0,0.00039471]
[1610360018227,0.82072038,36098.0,36085.0,0.00039471]
[1610360018829,0.82072038,36098.0,36084.0,0.24336608]
[1610360018830,0.82072038,36098.0,36086.0,0.0832]
[1610360019030,0.82072038,36098.0,36086.0,0.08359469]
[1610360019229,0.82072038,36098.0,36087.0,0.00039469]
[1610360019629,0.13632608,36088.0,36087.0,0.00039469]
[1610360019829,0.13632608,36088.0,36085.0,0.00039471]
[1610360020029,0.13632608,36088.0,36087.0,0.00039471]
[1610360020430,0.13632608,36088.0,36085.0,0.00039471]
[1610360020631,0.13632608,36088.0,36086.0,0.082]
[1610360020830,0.13632608,36088.0,36084.0,0.10704]
[1610360021031,0.7898854,36096.0,36084.0,0.10535471]
[1610360021230,0.91900675,36102.0,36085.0,0.00039468]
[1610360021429,0.74400675,36102.0,36085.0,0.00039468]
[1610360021633,0.52479223,36106.0,36085.0,0.00039468]
[1610360021830,0.52479223,36106.0,36101.0,0.13632608]
[1610360022029,1.0,36107.0,36101.0,0.13632608]
[1610360022030,1.19116868,36107.0,36101.0,0.22892608]
[1610360022230,1.12426868,36107.0,36102.0,0.00039462]
[1610360022430,0.17813486,36110.0,36102.0,0.00039462]
[1610360023230,0.08313486,36110.0,36102.0,0.00039462]
[1610360023431,1.14847353,36121.0,36102.0,0.00039462]
[1610360023631,1.14846928,36123.0,36102.0,0.00039462]
[1610360023831,1.14846928,36123.0,36122.0,0.13632608]
[1610360024032,0.13632608,36128.0,36122.0,0.13632608]
[1610360024235,0.13632608,36128.0,36121.0,0.09843]
[1610360024433,0.13593163,36119.0,36103.0,0.0831]
[1610360024632,0.13593163,36119.0,36101.0,0.0926]
[1610360024832,0.13593163,36119.0,36104.0,0.00039442]
[1610360025031,0.13593163,36119.0,36102.0,0.00039444]
[1610360025633,0.13593163,36119.0,36103.0,0.0827]
[1610360025832,0.13593163,36119.0,36104.0,0.0822]
[1610360026233,0.13593163,36119.0,36105.0,0.00039447]
[1610360026432,0.0828,36118.0,36105.0,0.00039447]
[1610360027133,0.13593163,36119.0,36105.0,0.00039447]
[1610360027333,1.14967525,36118.0,36105.0,0.00039447]
[1610360027533,1.14967525,36118.0,36102.0,0.00039447]
[1610360027733,1.14967525,36118.0,36106.0,0.00039447]
[1610360027934,1.14994385,36117.0,36103.0,0.00039449]
[1610360028137,0.0819,36116.0,36104.0,0.0833]
[1610360028534,1.15054818,36117.0,36105.0,0.0003936]
[1610360028933,1.15053711,36115.0,36105.0,0.0003936]
[1610360029133,1.15053711,36115.0,36101.0,0.0926]
[1610360029134,1.15053711,36115.0,36102.0,0.0003936]
[1610360029334,0.082,36114.0,36106.0,0.0003936]
[1610360029536,0.082,36114.0,36107.0,0.0832]
[1610360029734,0.13632608,36108.0,36107.0,0.0832]
[1610360029934,0.13632608,36108.0,36101.0,0.00919358]
[1610360030134,0.13632608,36108.0,36099.0,0.0827]
[1610360030335,0.13632608,36108.0,36102.0,0.00039361]
[1610360030538,1.2884075,36108.0,36102.0,0.00039361]
[1610360030734,1.0,36101.0,36100.0,0.00039365]
[1610360030935,1.0,36101.0,36028.0,0.2734]
[1610360031337,2.15217868,36101.0,36071.0,0.08241]
[1610360031537,2.15217868,36101.0,36096.0,0.0003937]
[1610360031739,0.13632608,36097.0,36093.0,0.10807]
[1610360031937,2.21138195,36097.0,36093.0,0.10807]
[1610360032140,2.21138195,36097.0,36094.0,0.00039368]
[1610360032336,2.21138195,36097.0,36092.0,0.10462]
[1610360032537,0.9222419,36094.0,36092.0,0.10462]
[1610360032837,1.15342038,36094.0,36087.0,0.019143]
[1610360033038,1.15342038,36094.0,36071.0,0.08241]
[1610360033238,1.15342038,36094.0,36088.0,0.00039365]
[1610360033638,0.92315843,36088.0,36085.0,0.00039365]
[1610360033838,0.13632608,36086.0,36071.0,0.08241]
[1610360034239,0.13632608,36086.0,36085.0,0.00039366]
[1610360034640,0.13632608,36086.0,36072.0,0.00039367]
[1610360034839,1.05984923,36086.0,36085.0,0.00039367]
[1610360035038,1.05984923,36086.0,36073.0,0.00039367]
[1610360035440,1.05984923,36086.0,36072.0,0.00039367]
[1610360035639,0.92386382,36083.0,36074.0,0.00039367]
[1610360035839,0.92386382,36083.0,36075.0,0.13632608]
[1610360036040,0.9238571,36084.0,36075.0,0.13632608]
[1610360036240,0.9238571,36084.0,36075.0,0.13671975]
[1610360036441,0.82528881,36077.0,36076.0,0.00039367]
[1610360036941,0.82520182,36078.0,36076.0,0.00039367]
[1610360037143,0.82517102,36082.0,36076.0,0.00039367]
[1610360037541,0.82572764,36081.0,36076.0,0.00039367]
[1610360037741,0.82572764,36081.0,36080.0,0.13632608]
[1610360038241,0.82572154,36082.0,36080.0,0.13671972]
[1610360038442,0.82572154,36082.0,36080.0,0.22001972]
[1610360038642,0.13632608,36085.0,36080.0,0.22001972]
[1610360038643,0.82631042,36081.0,36080.0,0.13671972]
[1610360038843,0.82631042,36081.0,36080.0,0.13632608]
[1610360039044,0.82631042,36081.0,36080.0,0.13671971]
[1610360039244,0.82631042,36081.0,36080.0,0.13711335]
[1610360041248,0.82631042,36081.0,36080.0,0.13542764]
[1610360041448,1.75401448,36081.0,36080.0,0.13542764]
[1610360041848,1.75401448,36081.0,36080.0,0.21842764]
[1610360042049,1.75401448,36081.0,36080.0,0.13542764]
[1610360043651,1.75401448,36081.0,36080.0,0.00078727]
[1610360043852,1.89034056,36081.0,36071.0,0.08241]
[1610360044053,3.05202465,36081.0,36080.0,0.00039367]
[1610360044251,3.05202465,36081.0,36072.0,0.00039364]
[1610360044452,4.51348579,36081.0,36072.0,0.00039364]
[1610360044651,4.51348579,36081.0,36080.0,0.00039366]
[1610360044854,4.51348579,36081.0,36073.0,0.00039366]
[1610360045053,4.51348579,36081.0,36080.0,0.00039366]
[1610360045253,0.13632608,36081.0,36071.0,0.0228976]
[1610360045553,4.67510844,36081.0,36072.0,0.00039362]
[1610360045753,4.53878236,36081.0,36076.0,0.13632608]
[1610360045953,1.4622959,36079.0,36076.0,0.13632608]
[1610360046155,1.4622959,36079.0,36077.0,0.00039362]
[1610360046755,4.38996619,36078.0,36077.0,0.00039362]
[1610360047756,4.52629227,36078.0,36077.0,0.00039362]
[1610360048156,4.52629227,36078.0,36072.0,0.00039365]
[1610360048566,6.19102091,36078.0,36072.0,0.00039365]
[1610360048958,6.06058043,36073.0,36041.0,0.03372351]
[1610360049357,6.06058043,36073.0,36030.0,0.0834]
[1610360049559,0.83297188,36049.0,36042.0,0.00039368]
[1610360049757,0.83297188,36049.0,36048.0,0.13632608]
[1610360049961,0.93303144,36052.0,36048.0,0.09952]
[1610360050360,0.2892,36059.0,36049.0,0.00039377]
[1610360050559,1.16671301,36052.0,36049.0,0.00039377]
[1610360050959,2.93380089,36050.0,36049.0,0.00039377]
[1610360051360,2.93378945,36050.0,36048.0,0.09822661]
[1610360051759,0.13632608,36049.0,36048.0,0.09822661]
[1610360051960,3.07008125,36049.0,36048.0,0.09822661]
[1610360052160,3.07008125,36049.0,36048.0,0.09862041]
[1610360052361,3.07008125,36049.0,36048.0,0.09901421]
[1610360052562,3.07008125,36049.0,36048.0,0.09862041]
[1610360053561,3.07008125,36049.0,36040.0,0.13632608]
[1610360053961,2.93375517,36049.0,36048.0,0.13632608]
[1610360054161,1.16680225,36049.0,36048.0,0.21463608]
[1610360054560,1.76510618,36049.0,36048.0,0.21463608]
[1610360054962,0.9324995,36049.0,36048.0,0.21463608]
[1610360055163,1.76506971,36049.0,36048.0,0.21463608]
[1610360055361,1.59806971,36049.0,36048.0,0.21463608]
[1610360055562,1.16526753,36054.0,36048.0,0.2150298]
[1610360055761,0.99026753,36054.0,36048.0,0.2150298]
[1610360055961,0.99026753,36054.0,36053.0,0.13632608]
[1610360056161,1.83103958,36064.0,36053.0,0.21912608]
[1610360056162,1.19656797,36060.0,36053.0,0.21912608]
[1610360056463,2.6089096,36071.0,36053.0,0.08319366]
[1610360056663,2.5849096,36071.0,36054.0,0.00039363]
[1610360056863,1.83077996,36077.0,36054.0,0.00039363]
[1610360057263,1.99719937,36081.0,36054.0,0.00039363]
[1610360057264,1.83061155,36081.0,36054.0,0.00039363]
[1610360057864,1.83061155,36081.0,36073.0,0.13632608]
[1610360058466,1.83146344,36082.0,36073.0,0.13632608]
[1610360058666,1.83146344,36082.0,36071.0,0.0733]
[1610360058866,1.83144486,36083.0,36074.0,0.00039273]
[1610360059067,1.83144486,36083.0,36072.0,0.00039273]
[1610360059268,0.5585,36084.0,36075.0,0.00039271]
[1610360059269,2.38990479,36084.0,36075.0,0.00039271]
[1610360059469,2.38990479,36084.0,36073.0,0.00039271]
[1610360059669,0.5585,36084.0,36073.0,0.08389271]
[1610360059869,0.5585,36084.0,36083.0,0.13632608]
[1610360060071,0.5585,36084.0,36083.0,0.24142608]
[1610360060670,1.83161817,36089.0,36083.0,0.24142608]
[1610360060871,3.8394,36109.0,36083.0,0.24142608]
[1610360060872,1.77627225,36091.0,36083.0,0.24142608]
[1610360061072,0.94407611,36095.0,36084.0,0.00039265]
[1610360061473,1.99835351,36103.0,36083.0,0.24013311]
[1610360061671,2.93018127,36104.0,36083.0,0.24013311]
[1610360061872,2.87798127,36104.0,36103.0,0.13632608]
[1610360062072,1.82661256,36108.0,36103.0,0.24036608]
[1610360062273,1.65691256,36108.0,36103.0,0.24036608]
[1610360062475,2.16429936,36117.0,36103.0,0.07185707]
[1610360062676,0.33932299,36118.0,36103.0,0.07185707]
[1610360062990,0.33932299,36118.0,36103.0,0.15385707]
[1610360063175,2.49664822,36127.0,36104.0,0.0831]
[1610360063176,2.16349401,36127.0,36104.0,0.0831]
[1610360063577,2.16303115,36129.0,36104.0,0.0831]
[1610360063787,2.16287229,36132.0,36105.0,0.00039229]
[1610360063978,2.05087229,36132.0,36131.0,0.13632608]
[1610360064278,2.32885627,36141.0,36131.0,0.20953608]
[1610360064478,2.3272845,36145.0,36104.0,1.5831]
[1610360064679,2.32730456,36147.0,36104.0,1.5831]
[1610360064880,2.32730456,36147.0,36105.0,0.00039218]
[1610360065081,2.327145,36149.0,36105.0,0.00039218]
[1610360065285,2.243145,36149.0,36105.0,0.00039218]
[1610360065486,2.99220123,36163.0,36105.0,0.00039218]
[1610360065487,2.49080687,36157.0,36105.0,0.00039218]
[1610360065684,0.65818747,36162.0,36117.0,3.9452]
[1610360065882,0.57618747,36162.0,36160.0,0.13632608]
[1610360066084,2.82247147,36171.0,36160.0,0.13632608]
[1610360066085,2.65621649,36171.0,36160.0,0.13632608]
[1610360066483,1.45880564,36161.0,36152.0,0.10298]
[1610360066684,2.6522088,36178.0,36152.0,0.10298]
[1610360067085,1.65763589,36157.0,36152.0,0.10298]
[1610360067485,1.65551416,36159.0,36152.0,0.10298]
[1610360067886,1.65551416,36159.0,36155.0,0.13632608]
[1610360068088,1.65551416,36159.0,36156.0,0.0822]
[1610360068290,1.65549816,36160.0,36156.0,0.0822]
[1610360068488,1.65549816,36160.0,36152.0,0.10298]
[1610360068687,1.65332483,36162.0,36152.0,0.10298]
[1610360069090,1.65323622,36166.0,36152.0,0.10298]
[1610360069288,1.6510719,36169.0,36152.0,0.10298]
[1610360069889,1.5995719,36169.0,36168.0,0.13632608]
[1610360070090,3.5659,36190.0,36168.0,0.23175608]
[1610360070491,3.5659,36190.0,36168.0,0.08309]
[1610360070692,3.5659,36190.0,36168.0,0.09504]
[1610360071092,2.63697623,36206.0,36169.0,0.0818]
[1610360071293,1.8127533,36191.0,36169.0,0.0818]
[1610360071490,1.80960941,36195.0,36169.0,0.0818]
[1610360071900,1.80949695,36197.0,36188.0,0.1346444]
[1610360072100,1.80946195,36198.0,36188.0,0.1346444]
[1610360072294,1.46946195,36198.0,36183.0,0.07292]
[1610360072496,0.09352,36202.0,36183.0,0.07292]
[1610360073297,1.97043334,36209.0,36183.0,0.07292]
[1610360073890,0.13632608,36198.0,36197.0,0.13632608]
[1610360074690,0.07368,36215.0,36197.0,0.13632608]
[1610360075992,0.13632608,36198.0,36197.0,0.13632608]
[1610360076390,0.13632608,36198.0,36192.0,0.09616]
[1610360076591,2.608e-05,36198.0,36192.0,0.09616]
[1610360076790,2.608e-05,36198.0,36193.0,0.0818]
[1610360076992,2.608e-05,36198.0,36192.0,0.09616]
[1610360077193,2.608e-05,36198.0,36183.0,0.07292]
[1610360077391,2.608e-05,36198.0,36155.0,0.0829]
[1610360077994,0.10198,36206.0,36185.0,0.13632608]
[1610360079995,0.13632608,36199.0,36185.0,0.13632608]
[1610360081497,0.10198,36206.0,36185.0,0.13632608]
[1610360081695,0.07368,36215.0,36185.0,0.13632608]
[1610360081897,1.2784,36223.0,36185.0,0.13632608]
[1610360082096,1.2784,36223.0,36210.0,0.13632608]
[1610360082598,0.2784,36223.0,36210.0,0.13632608]
[1610360082799,0.2784,36223.0,36192.0,0.09861]
[1610360082999,0.37874,36223.0,36192.0,0.09861]
[1610360083202,0.37874,36223.0,36193.0,0.0828]
[1610360083604,0.37874,36223.0,36192.0,0.09861]
[1610360085704,0.37874,36223.0,36193.0,0.082]
[1610360085905,0.13632608,36200.0,36192.0,0.23493608]
[1610360086906,0.13632608,36200.0,36192.0,0.31643608]
[1610360087308,0.07732608,36200.0,36192.0,0.31643608]
[1610360087707,0.06132608,36200.0,36192.0,0.31643608]
[1610360088108,0.13632608,36193.0,36192.0,0.09861]
[1610360088307,0.13632608,36193.0,36187.0,3.6074]
[1610360088709,0.07691,36213.0,36187.0,3.6074]
[1610360089110,0.37874,36223.0,36187.0,3.6074]
[1610360089111,0.28965,36223.0,36187.0,3.6074]
[1610360089310,0.28965,36223.0,36188.0,0.0817]
[1610360090512,0.28965,36223.0,36187.0,3.6074]
[1610360092115,0.13632608,36188.0,36187.0,3.6074]
[1610360092717,0.13632608,36188.0,36187.0,3.60778676]
[1610360093215,0.13632608,36188.0,36187.0,0.00038676]
[1610360093815,0.13632608,36188.0,36183.0,0.00038682]
[1610360094018,0.11096,36208.0,36187.0,0.00038682]
[1610360094216,0.11096,36208.0,36184.0,0.00038682]
[1610360094616,1.0,36202.0,36188.0,0.00038682]
[1610360094815,1.0,36202.0,36185.0,0.00038682]
[1610360095016,1.0,36202.0,36189.0,0.00038679]
[1610360095415,1.0,36202.0,36186.0,0.00038679]
[1610360095616,1.0,36202.0,36190.0,0.00038681]
[1610360095815,1.0,36202.0,36187.0,0.00038681]
[1610360096016,0.13632608,36188.0,36176.0,0.0827]
[1610360096417,0.13632608,36188.0,36177.0,0.00038682]
[1610360097319,0.12102608,36188.0,36177.0,0.00038682]
[1610360097519,0.0752,36194.0,36177.0,0.0336358]
[1610360097718,0.0752,36194.0,36177.0,0.0340226]
[1610360098119,0.13632608,36193.0,36183.0,0.13632608]
[1610360098321,0.13632608,36193.0,36184.0,0.0834]
[1610360098518,0.05292608,36193.0,36184.0,0.08378675]
[1610360098720,0.05292608,36193.0,36185.0,0.00038675]
[1610360099322,0.11096,36208.0,36185.0,0.00038675]
[1610360099520,3.7141,36212.0,36185.0,0.00038675]
[1610360099721,0.00033629,36207.0,36185.0,0.00038675]
[1610360099921,0.07231629,36207.0,36185.0,0.00038675]
[1610360100123,0.13632608,36199.0,36196.0,0.13632608]
[1610360100322,0.13632608,36199.0,36185.0,0.00038675]
[1610360100523,0.13632608,36199.0,36197.0,0.00038671]
[1610360100924,0.13632608,36199.0,36180.0,0.03401405]
[1610360101123,0.13632608,36199.0,36198.0,0.00038671]
[1610360101324,0.13632608,36199.0,36183.0,0.0817]
[1610360101523,0.22434608,36199.0,36181.0,0.00038671]
[1610360101726,0.22434608,36199.0,36198.0,0.00038673]
[1610360101924,0.22434608,36199.0,36187.0,0.0818]
[1610360102126,0.22434608,36199.0,36198.0,0.00038676]
[1610360102526,0.22434608,36199.0,36190.0,0.13632608]
[1610360102726,0.15674608,36199.0,36198.0,0.00038676]
[1610360102925,0.14014608,36199.0,36191.0,0.00038674]
[1610360103125,0.14014608,36199.0,36198.0,0.00038674]
[1610360103527,0.14014608,36199.0,36191.0,0.00038674]
[1610360103728,0.14014608,36199.0,36198.0,0.00038672]
[1610360103926,0.14014608,36199.0,36192.0,0.00038672]
[1610360104127,0.08802,36199.0,36194.0,0.13632608]
[1610360104530,0.08802,36199.0,36195.0,0.0003867]
[1610360105529,0.08802,36199.0,36180.0,0.03362734]
[1610360105930,0.08802,36199.0,36196.0,0.00038673]
[1610360106131,0.13632608,36197.0,36196.0,0.00038673]
[1610360106731,0.13632608,36197.0,36196.0,0.00077349]
[1610360106934,0.13632608,36197.0,36196.0,0.00116025]
[1610360107134,0.13632608,36197.0,36196.0,0.001547]
[1610360107333,0.13632608,36197.0,36196.0,0.00038675]
[1610360107533,0.13632608,36197.0,36196.0,0.00077353]
[1610360107733,0.13632608,36197.0,36196.0,0.00077354]
[1610360107933,0.13632608,36197.0,36196.0,0.00077341]
[1610360108132,0.13666243,36197.0,36196.0,0.00077343]
[1610360108534,0.13666243,36197.0,36196.0,0.00077256]
[1610360108733,0.13666243,36197.0,36196.0,0.00038492]
[1610360108934,0.13666243,36197.0,36181.0,0.00038674]
[1610360109133,0.00033635,36197.0,36181.0,0.00038674]
[1610360109334,0.00033643,36196.0,36182.0,0.00038398]
[1610360109535,0.00033643,36196.0,36161.0,0.06116158]
[1610360109734,0.00033645,36198.0,36127.0,0.0833]
[1610360110136,0.13632608,36159.0,36129.0,0.13632608]
[1610360110537,0.13666262,36159.0,36129.0,0.13632608]
[1610360110937,0.13666262,36159.0,36131.0,0.0838]
[1610360111136,0.13666262,36159.0,36129.0,0.13632608]
[1610360111737,0.13666262,36159.0,36157.0,0.03342117]
[1610360111937,0.13666262,36159.0,36157.0,0.03173774]
[1610360112139,0.01701315,36158.0,36157.0,0.03173774]
[1610360112538,0.01701315,36158.0,36136.0,0.13632608]
[1610360114044,0.13632608,36154.0,36149.0,0.13632608]
[1610360114444,0.13632608,36154.0,36131.0,3.1586]
[1610360114648,0.00033662,36153.0,36131.0,3.1586]
[1610360114845,0.0175773,36153.0,36131.0,3.1586]
[1610360116147,0.13632608,36139.0,36136.0,0.13632608]
[1610360116750,0.00033664,36138.0,36136.0,0.13632608]
[1610360117150,0.01757776,36161.0,36136.0,0.13632608]
[1610360117349,0.01757776,36161.0,36136.0,0.21413608]
[1610360117549,0.00033662,36137.0,36136.0,0.21413608]
[1610360117749,0.11262,36162.0,36136.0,0.21413608]
[1610360118150,1.0,36165.0,36156.0,0.13632608]
[1610360118351,1.0,36165.0,36136.0,0.07781]
[1610360118750,1.64465749,36166.0,36136.0,0.07781]
[1610360119154,1.64466308,36165.0,36136.0,0.07781]
[1610360119553,1.64775977,36163.0,36136.0,0.07781]
[1610360119755,1.72329977,36163.0,36136.0,0.07781]
[1610360120153,1.72329977,36163.0,36154.0,0.13632608]
[1610360120555,1.72329977,36163.0,36136.0,0.07781]
[1610360120759,1.65085226,36161.0,36136.0,0.07781]
[1610360120957,1.65085232,36159.0,36136.0,0.07781]
[1610360121259,1.65359122,36156.0,36136.0,0.07781]
[1610360121858,1.6536473,36155.0,36136.0,0.07781]
[1610360122059,0.07554,36163.0,36136.0,0.21245272]
[1610360122060,0.13632608,36137.0,36136.0,0.21245272]
[1610360123260,0.13632608,36137.0,36136.0,0.07612664]
[1610360123460,0.13632608,36137.0,36128.0,0.0826]
[1610360124059,0.13632608,36129.0,36126.0,3.6196]
[1610360125268,0.13632608,36129.0,36115.0,0.10087886]
[1610360125464,0.13632608,36129.0,36117.0,0.03475992]
[1610360125664,0.13632608,36129.0,36083.0,0.0835]
[1610360125875,1.65775729,36124.0,36083.0,0.0835]
[1610360126066,1.65775729,36124.0,36102.0,0.13632608]
[1610360126275,1.6577785,36122.0,36102.0,0.23487608]
[1610360126665,1.6577785,36122.0,36102.0,0.09855]
[1610360127066,1.6564623,36118.0,36102.0,0.09855]
[1610360127476,1.65456754,36117.0,36102.0,0.09855]
[1610360127872,1.65458452,36116.0,36102.0,0.09855]
[1610360128072,0.10414,36122.0,36102.0,0.09855]
[1610360128073,0.13632608,36103.0,36102.0,0.09855]
[1610360128666,1.13632608,36103.0,36102.0,0.09855]
[1610360128868,1.13632608,36103.0,36073.0,0.13632608]
[1610360130069,1.0,36103.0,36096.0,0.13632608]
[1610360130270,1.0,36103.0,36087.0,0.0819]
[1610360130668,0.07051,36113.0,36087.0,0.0819]
[1610360130872,0.00029412,36103.0,36087.0,0.0819]
[1610360131071,0.00029412,36103.0,36084.0,0.07313]
[1610360132171,0.00029412,36103.0,36102.0,0.13632608]
[1610360133273,0.00029412,36103.0,36102.0,0.13464113]
[1610360133473,0.00029412,36103.0,36084.0,0.07313]
[1610360134173,0.00029412,36103.0,36099.0,0.13632608]
[1610360134374,0.00029412,36103.0,36095.0,0.0839]
[1610360134875,0.00029412,36103.0,36084.0,0.07313]
[1610360135276,0.00029412,36103.0,36079.0,0.0828]
[1610360136576,0.00029412,36103.0,36100.0,0.13632608]
[1610360136777,0.00029412,36103.0,36101.0,0.0835]
[1610360137379,0.00029412,36103.0,36100.0,0.13632608]
[1610360138679,0.00029412,36103.0,36101.0,0.0835]
[1610360138878,0.08992,36130.0,36101.0,0.0835]
[1610360138879,1.34711081,36135.0,36101.0,0.0835]
[1610360139278,0.2821,36140.0,36101.0,0.0835]
[1610360139479,1.0,36144.0,36101.0,0.0835]
[1610360140383,1.0,36144.0,36103.0,3.1242]
[1610360140583,1.0,36144.0,36142.0,0.13632608]
[1610360140781,1.6389773,36151.0,36142.0,0.13632608]
[1610360140983,1.63889941,36152.0,36140.0,0.0987]
[1610360141184,0.03762608,36127.0,36121.0,0.0873]
[1610360141383,0.03242608,36127.0,36121.0,0.0873]
[1610360141982,1.63899683,36157.0,36121.0,0.0873]
[1610360142184,1.63890441,36161.0,36121.0,0.0873]
[1610360142683,0.0003367,36160.0,36141.0,0.13632608]
[1610360143286,1.63966363,36161.0,36141.0,0.13464234]
[1610360143483,0.0003367,36159.0,36121.0,0.0873]
[1610360143685,0.00033672,36160.0,36141.0,0.09117]
[1610360143885,1.63990893,36159.0,36141.0,0.09117]
[1610360144088,0.00033672,36158.0,36141.0,0.09117]
[1610360144286,1.63997794,36157.0,36141.0,0.09117]
[1610360144488,1.72040794,36157.0,36141.0,0.09117]
[1610360144687,0.13632608,36142.0,36121.0,0.0873]
[1610360145491,0.13632608,36142.0,36073.0,0.0832]
[1610360145691,0.00033685,36141.0,36083.0,0.0833]
[1610360145890,0.00033685,36141.0,36087.0,0.083]
[1610360146091,0.00033685,36141.0,36103.0,3.2063]
[1610360146292,0.00033685,36141.0,36103.0,3.1242]
[1610360146591,1.14942293,36132.0,36103.0,3.1242]
[1610360146791,0.13632608,36120.0,36119.0,0.13632608]
[1610360146991,0.13632608,36120.0,36103.0,3.1242]
[1610360147191,0.13632608,36120.0,36104.0,0.083]
[1610360147390,0.13632608,36120.0,36104.0,0.15988]
[1610360148492,0.13632608,36120.0,36104.0,0.07688]
[1610360148691,0.13632608,36120.0,36119.0,0.13632608]
[1610360148892,0.13632608,36120.0,36119.0,0.08759]
[1610360149892,0.13632608,36120.0,36119.0,0.17099]
[1610360150292,0.13632608,36120.0,36104.0,0.07688]
[1610360150694,0.13632608,36120.0,36119.0,0.13632608]
[1610360150892,1.15098858,36132.0,36119.0,0.13632608]
[1610360151294,1.15087326,36135.0,36119.0,0.13632608]
[1610360151493,1.15133915,36137.0,36119.0,0.13632608]
[1610360152094,3.391,36138.0,36119.0,0.13632608]
[1610360152595,3.391,36138.0,36120.0,0.00038539]
[1610360152795,3.391,36138.0,36137.0,0.13632608]
[1610360154097,3.391,36138.0,36137.0,0.13464232]
[1610360154798,3.391,36138.0,36132.0,0.10958]
[1610360155000,3.39133677,36138.0,36028.0,2.03552735]
[1610360155197,3.39133677,36138.0,36051.0,1.5]
[1610360155399,1.15304474,36135.0,36118.0,0.13632608]
[1610360155900,1.15343034,36134.0,36118.0,0.13632608]
[1610360156099,1.15309353,36134.0,36118.0,0.13632608]
[1610360156300,1.15313111,36132.0,36118.0,0.13632608]
[1610360156500,1.15350992,36131.0,36118.0,0.13632608]
[1610360157500,1.15350992,36131.0,36122.0,0.13632608]
[1610360157700,1.15385034,36132.0,36122.0,0.13632608]
[1610360158001,1.15382399,36134.0,36122.0,0.13632608]
[1610360158601,1.15438607,36133.0,36122.0,0.13632608]
[1610360158802,1.15437403,36134.0,36122.0,0.13632608]
[1610360159304,0.91270635,36144.0,36122.0,0.13632608]
[1610360159305,0.00033679,36133.0,36122.0,0.13632608]
[1610360159513,0.00033679,36133.0,36128.0,0.13632608]
[1610360159706,1.15540549,36134.0,36128.0,0.24443608]
[1610360160002,1.15510731,36131.0,36128.0,0.10811]
[1610360160202,0.00033679,36133.0,36128.0,0.10811]
[1610360160203,1.15509028,36132.0,36128.0,0.10811]
[1610360160602,0.00033679,36131.0,36128.0,0.10811]
[1610360161403,0.13632608,36129.0,36128.0,0.10811]
[1610360161803,0.13632608,36129.0,36128.0,0.19171]
[1610360162203,0.13412608,36129.0,36128.0,0.19171]
[1610360163204,1.29201432,36129.0,36128.0,0.19171]
[1610360163603,1.29201432,36129.0,36128.0,0.10811]
[1610360164507,1.29201432,36129.0,36128.0,0.19191]
[1610360164708,1.29201432,36129.0,36128.0,0.0838]
[1610360164709,2.74991224,36129.0,36128.0,0.0838]
[1610360164908,2.74991224,36129.0,36128.0,0.08211579]
[1610360165612,2.74991224,36129.0,36123.0,0.13632608]
[1610360165809,2.74991224,36129.0,36116.0,0.08752]
[1610360166013,1.16090711,36124.0,36069.0,1.7179]
[1610360166412,1.16192891,36122.0,36106.0,0.00038547]
[1610360166610,1.16208602,36121.0,36106.0,0.00038547]
[1610360167012,1.16242282,36121.0,36106.0,0.00038547]
[1610360167211,1.02958602,36121.0,36106.0,0.00038547]
[1610360167413,1.46209178,36123.0,36120.0,0.13632608]
[1610360167611,1.46209178,36123.0,36120.0,0.23335608]
[1610360168012,0.00033681,36122.0,36120.0,0.23335608]
[1610360168213,0.00033681,36122.0,36120.0,0.06493205]
[1610360168813,1.66144528,36127.0,36120.0,0.06493205]
[1610360168814,1.46360068,36124.0,36120.0,0.06493205]
[1610360169314,1.42283749,36124.0,36120.0,0.06493205]
[1610360169514,0.05632608,36121.0,36120.0,0.06493205]
[1610360169715,1.49823001,36126.0,36120.0,0.06493205]
[1610360169915,1.47003637,36130.0,36120.0,0.06493205]
[1610360170116,1.07203637,36130.0,36121.0,0.00038544]
[1610360170317,1.99665953,36141.0,36125.0,4.3347]
[1610360170516,1.70545953,36141.0,36126.0,0.0826]
[1610360170717,2.08159404,36148.0,36126.0,0.0826]
[1610360170917,1.97163074,36148.0,36127.0,0.00038544]
[1610360171119,2.3299919,36155.0,36128.0,0.0835]
[1610360171317,0.00033664,36147.0,36128.0,0.16452]
[1610360171517,0.00033664,36147.0,36146.0,0.13632608]
[1610360171717,0.00033664,36154.0,36146.0,0.22398608]
[1610360171918,2.33010551,36161.0,36146.0,0.22398608]
[1610360172117,0.00033662,36153.0,36146.0,0.22398608]
[1610360172518,0.00033662,36160.0,36146.0,0.22398608]
[1610360172717,0.00033662,36152.0,36146.0,0.22398608]
[1610360172919,0.0003366,36159.0,36146.0,0.22398608]
[1610360173117,0.0003366,36159.0,36146.0,0.08766]
[1610360173321,0.0003366,36151.0,36146.0,0.08766]
[1610360173519,0.13632608,36147.0,36146.0,0.08766]
[1610360173721,0.13632608,36147.0,36131.0,0.13632608]
[1610360173920,0.13666274,36147.0,36131.0,0.13632608]
[1610360174321,0.00033666,36146.0,36131.0,0.13632608]
[1610360174719,0.00033666,36146.0,36128.0,0.08102]
[1610360175621,0.13632608,36129.0,36128.0,0.08102]
[1610360176424,0.13632608,36129.0,36124.0,0.13632608]
[1610360176631,0.13632608,36129.0,36106.0,0.292]
[1610360177024,0.13632608,36129.0,36105.0,0.05]
[1610360177423,0.13632608,36129.0,36106.0,0.00038557]
[1610360177626,0.00033678,36128.0,36119.0,0.13632608]
[1610360178025,0.01190914,36128.0,36119.0,0.13632608]
[1610360178226,0.00033678,36127.0,36119.0,0.13632608]
[1610360178425,0.01190904,36127.0,36119.0,0.13632608]
[1610360178828,0.07801315,36141.0,36119.0,0.13632608]
[1610360179027,0.01190925,36126.0,36119.0,0.20812608]